Workbook

Sheet Sample data
B2: Sales Information of Products
B4: Sales Reps | C4: Category | D4: Product | E4: Quantity (kg) | F4: Unit Price | G4: Total Price | H4: Profit
B5: John | C5: Vegetables | D5: Brocolli | E5: 3 | F5: 29 | G5: =E5*F5 -> 87 | H5: =G5*0.05 -> 4.35
B6: Adam | C6: Fruit | D6: Cherry | E6: 3 | F6: 33 | G6: 99 | H6: 4.95
B7: Emily | C7: Dairy | D7: Milk | E7: 3 | F7: 70 | G7: 210 | H7: 10.5
B8: Adam | C8: Meat | D8: Beef | E8: 3 | F8: 120 | G8: 360 | H8: 18
B9: Emily | C9: Fruit | D9: Strawberry | E9: 2 | F9: 50 | G9: 100 | H9: 5
B10: John | C10: Meat | D10: Mutton | E10: 3 | F10: 150 | G10: 450 | H10: 22.5
B11: Mary | C11: Vegetables | D11: Carrot | E11: 2 | F11: 25 | G11: 50 | H11: 2.5
B12: Adam | C12: Fruit | D12: Strawberry | E12: 2 | F12: 42 | G12: 84 | H12: 4.2
B13: Mary | C13: Vegetables | D13: Brocolli | E13: 1 | F13: 30 | G13: 30 | H13: 1.5
B14: John | C14: Meat | D14: Chicken | E14: 2 | F14: 65 | G14: 130 | H14: 6.5
B15: Emily | C15: Fruit | D15: Cherry | E15: 4 | F15: 35 | G15: 140 | H15: 7
B16: Adam | C16: Meat | D16: Mutton | E16: 5 | F16: 100 | G16: 500 | H16: 25
B17: Emily | C17: Dairy | D17: Yogurt | E17: 4 | F17: 70 | G17: 280 | H17: 14
B18: John | C18: Meat | D18: Beef | E18: 3 | F18: 115 | G18: 345 | H18: 17.25

Sheet Auto
B2: Inserting Subtotals Automatically
B4: Sales Reps | C4: Category | D4: Product | E4: Quantity (kg) | F4: Unit Price | G4: Total Price | H4: Profit
B5: Adam | C5: Fruit | D5: Cherry | E5: 3 | F5: 33 | G5: =E5*F5 -> 99 | H5: =G5*0.05 -> 4.95
B6: Adam | C6: Meat | D6: Beef | E6: 3 | F6: 120 | G6: =E6*F6 -> 360 | H6: =G6*0.05 -> 18
B7: Adam | C7: Fruit | D7: Strawberry | E7: 2 | F7: 42 | G7: =E7*F7 -> 84 | H7: =G7*0.05 -> 4.2
B8: Adam | C8: Meat | D8: Mutton | E8: 5 | F8: 100 | G8: =E8*F8 -> 500 | H8: =G8*0.05 -> 25
B9: Adam Total | E9: =SUBTOTAL(9,E5:E8) -> 13 | G9: =SUBTOTAL(9,G5:G8) -> 1043 | H9: =SUBTOTAL(9,H5:H8) -> 52.15
B10: Emily | C10: Dairy | D10: Milk | E10: 3 | F10: 70 | G10: =E10*F10 -> 210 | H10: =G10*0.05 -> 10.5
B11: Emily | C11: Fruit | D11: Strawberry | E11: 2 | F11: 50 | G11: =E11*F11 -> 100 | H11: =G11*0.05 -> 5
B12: Emily | C12: Fruit | D12: Cherry | E12: 4 | F12: 35 | G12: =E12*F12 -> 140 | H12: =G12*0.05 -> 7
B13: Emily | C13: Dairy | D13: Yogurt | E13: 4 | F13: 70 | G13: =E13*F13 -> 280 | H13: =G13*0.05 -> 14
B14: Emily Total | E14: =SUBTOTAL(9,E10:E13) -> 13 | G14: =SUBTOTAL(9,G10:G13) -> 730 | H14: =SUBTOTAL(9,H10:H13) -> 36.5
B15: John | C15: Vegetables | D15: Brocolli | E15: 3 | F15: 29 | G15: =E15*F15 -> 87 | H15: =G15*0.05 -> 4.35
B16: John | C16: Meat | D16: Mutton | E16: 3 | F16: 150 | G16: =E16*F16 -> 450 | H16: =G16*0.05 -> 22.5
B17: John | C17: Meat | D17: Chicken | E17: 2 | F17: 65 | G17: =E17*F17 -> 130 | H17: =G17*0.05 -> 6.5
B18: John | C18: Meat | D18: Beef | E18: 3 | F18: 115 | G18: =E18*F18 -> 345 | H18: =G18*0.05 -> 17.25
B19: John Total | E19: =SUBTOTAL(9,E15:E18) -> 11 | G19: =SUBTOTAL(9,G15:G18) -> 1012 | H19: =SUBTOTAL(9,H15:H18) -> 50.6
B20: Mary | C20: Vegetables | D20: Carrot | E20: 2 | F20: 25 | G20: =E20*F20 -> 50 | H20: =G20*0.05 -> 2.5
B21: Mary | C21: Vegetables | D21: Brocolli | E21: 1 | F21: 30 | G21: =E21*F21 -> 30 | H21: =G21*0.05 -> 1.5
B22: Mary Total | E22: =SUBTOTAL(9,E20:E21) -> 3 | G22: =SUBTOTAL(9,G20:G21) -> 80 | H22: =SUBTOTAL(9,H20:H21) -> 4
B23: Grand Total | E23: =SUBTOTAL(9,E5:E21) -> 40 | G23: =SUBTOTAL(9,G5:G21) -> 2865 | H23: =SUBTOTAL(9,H5:H21) -> 143.25

Sheet Different Column
B2: Adding Multiple Subtotals
B4: Sales Reps | C4: Category | D4: Product | E4: Quantity (kg) | F4: Unit Price | G4: Total Price | H4: Profit
B5: Adam | C5: Fruit | D5: Cherry | E5: 3 | F5: 33 | G5: =E5*F5 -> 99 | H5: =G5*0.05 -> 4.95
B6: Adam | C6: Fruit | D6: Strawberry | E6: 2 | F6: 42 | G6: =E6*F6 -> 84 | H6: =G6*0.05 -> 4.2
C7: Fruit Total | E7: =SUBTOTAL(9,E5:E6) -> 5 | G7: =SUBTOTAL(9,G5:G6) -> 183 | H7: =SUBTOTAL(9,H5:H6) -> 9.15
B8: Adam | C8: Meat | D8: Beef | E8: 3 | F8: 120 | G8: =E8*F8 -> 360 | H8: =G8*0.05 -> 18
B9: Adam | C9: Meat | D9: Mutton | E9: 5 | F9: 100 | G9: =E9*F9 -> 500 | H9: =G9*0.05 -> 25
C10: Meat Total | E10: =SUBTOTAL(9,E8:E9) -> 8 | G10: =SUBTOTAL(9,G8:G9) -> 860 | H10: =SUBTOTAL(9,H8:H9) -> 43
B11: Adam Total | E11: =SUBTOTAL(9,E5:E9) -> 13 | G11: =SUBTOTAL(9,G5:G9) -> 1043 | H11: =SUBTOTAL(9,H5:H9) -> 52.15
B12: Emily | C12: Dairy | D12: Milk | E12: 3 | F12: 70 | G12: =E12*F12 -> 210 | H12: =G12*0.05 -> 10.5
B13: Emily | C13: Dairy | D13: Yogurt | E13: 4 | F13: 70 | G13: =E13*F13 -> 280 | H13: =G13*0.05 -> 14
C14: Dairy Total | E14: =SUBTOTAL(9,E12:E13) -> 7 | G14: =SUBTOTAL(9,G12:G13) -> 490 | H14: =SUBTOTAL(9,H12:H13) -> 24.5
B15: Emily | C15: Fruit | D15: Strawberry | E15: 2 | F15: 50 | G15: =E15*F15 -> 100 | H15: =G15*0.05 -> 5
B16: Emily | C16: Fruit | D16: Cherry | E16: 4 | F16: 35 | G16: =E16*F16 -> 140 | H16: =G16*0.05 -> 7
C17: Fruit Total | E17: =SUBTOTAL(9,E15:E16) -> 6 | G17: =SUBTOTAL(9,G15:G16) -> 240 | H17: =SUBTOTAL(9,H15:H16) -> 12
B18: Emily Total | E18: =SUBTOTAL(9,E12:E16) -> 13 | G18: =SUBTOTAL(9,G12:G16) -> 730 | H18: =SUBTOTAL(9,H12:H16) -> 36.5
B19: John | C19: Meat | D19: Mutton | E19: 3 | F19: 150 | G19: =E19*F19 -> 450 | H19: =G19*0.05 -> 22.5
B20: John | C20: Meat | D20: Chicken | E20: 2 | F20: 65 | G20: =E20*F20 -> 130 | H20: =G20*0.05 -> 6.5
B21: John | C21: Meat | D21: Beef | E21: 3 | F21: 115 | G21: =E21*F21 -> 345 | H21: =G21*0.05 -> 17.25
C22: Meat Total | E22: =SUBTOTAL(9,E19:E21) -> 8 | G22: =SUBTOTAL(9,G19:G21) -> 925 | H22: =SUBTOTAL(9,H19:H21) -> 46.25
B23: John | C23: Vegetables | D23: Brocolli | E23: 3 | F23: 29 | G23: =E23*F23 -> 87 | H23: =G23*0.05 -> 4.35
C24: Vegetables Total | E24: =SUBTOTAL(9,E23:E23) -> 3 | G24: =SUBTOTAL(9,G23:G23) -> 87 | H24: =SUBTOTAL(9,H23:H23) -> 4.35
B25: John Total | E25: =SUBTOTAL(9,E19:E23) -> 11 | G25: =SUBTOTAL(9,G19:G23) -> 1012 | H25: =SUBTOTAL(9,H19:H23) -> 50.6
B26: Mary | C26: Vegetables | D26: Carrot | E26: 2 | F26: 25 | G26: =E26*F26 -> 50 | H26: =G26*0.05 -> 2.5
B27: Mary | C27: Vegetables | D27: Brocolli | E27: 1 | F27: 30 | G27: =E27*F27 -> 30 | H27: =G27*0.05 -> 1.5
C28: Vegetables Total | E28: =SUBTOTAL(9,E26:E27) -> 3 | G28: =SUBTOTAL(9,G26:G27) -> 80 | H28: =SUBTOTAL(9,H26:H27) -> 4
B29: Mary Total | E29: =SUBTOTAL(9,E26:E27) -> 3 | G29: =SUBTOTAL(9,G26:G27) -> 80 | H29: =SUBTOTAL(9,H26:H27) -> 4
B30: Grand Total | E30: =SUBTOTAL(9,E5:E27) -> 40 | G30: =SUBTOTAL(9,G5:G27) -> 2865 | H30: =SUBTOTAL(9,H5:H27) -> 143.25

Sheet Same Column
B2: Finding Multiple Subtotals in Same Column
B4: Sales Reps | C4: Category | D4: Product | E4: Quantity (kg) | F4: Unit Price | G4: Total Price | H4: Profit
B5: Adam | C5: Fruit | D5: Cherry | E5: 3 | F5: 33 | G5: =E5*F5 -> 99 | H5: =G5*0.05 -> 4.95
B6: Adam | C6: Meat | D6: Beef | E6: 3 | F6: 120 | G6: =E6*F6 -> 360 | H6: =G6*0.05 -> 18
B7: Adam | C7: Fruit | D7: Strawberry | E7: 2 | F7: 42 | G7: =E7*F7 -> 84 | H7: =G7*0.05 -> 4.2
B8: Adam | C8: Meat | D8: Mutton | E8: 5 | F8: 100 | G8: =E8*F8 -> 500 | H8: =G8*0.05 -> 25
B9: Adam StdDev | E9: =SUBTOTAL(7,E5:E8) -> 1.258305739 | G9: =SUBTOTAL(7,G5:G8) -> 203.7111926 | H9: =SUBTOTAL(7,H5:H8) -> 10.18555963
B10: Adam Average | E10: =SUBTOTAL(1,E5:E8) -> 3.25 | G10: =SUBTOTAL(1,G5:G8) -> 260.75 | H10: =SUBTOTAL(1,H5:H8) -> 13.0375
B11: Adam Total | E11: =SUBTOTAL(9,E5:E8) -> 13 | G11: =SUBTOTAL(9,G5:G8) -> 1043 | H11: =SUBTOTAL(9,H5:H8) -> 52.15
B12: Emily | C12: Dairy | D12: Milk | E12: 3 | F12: 70 | G12: =E12*F12 -> 210 | H12: =G12*0.05 -> 10.5
B13: Emily | C13: Fruit | D13: Strawberry | E13: 2 | F13: 50 | G13: =E13*F13 -> 100 | H13: =G13*0.05 -> 5
B14: Emily | C14: Fruit | D14: Cherry | E14: 4 | F14: 35 | G14: =E14*F14 -> 140 | H14: =G14*0.05 -> 7
B15: Emily | C15: Dairy | D15: Yogurt | E15: 4 | F15: 70 | G15: =E15*F15 -> 280 | H15: =G15*0.05 -> 14
B16: Emily StdDev | E16: =SUBTOTAL(7,E12:E15) -> 0.9574271078 | G16: =SUBTOTAL(7,G12:G15) -> 79.3200269 | H16: =SUBTOTAL(7,H12:H15) -> 3.966001345
B17: Emily Average | E17: =SUBTOTAL(1,E12:E15) -> 3.25 | G17: =SUBTOTAL(1,G12:G15) -> 182.5 | H17: =SUBTOTAL(1,H12:H15) -> 9.125
B18: Emily Total | E18: =SUBTOTAL(9,E12:E15) -> 13 | G18: =SUBTOTAL(9,G12:G15) -> 730 | H18: =SUBTOTAL(9,H12:H15) -> 36.5
B19: John | C19: Vegetables | D19: Brocolli | E19: 3 | F19: 29 | G19: =E19*F19 -> 87 | H19: =G19*0.05 -> 4.35
B20: John | C20: Meat | D20: Mutton | E20: 3 | F20: 150 | G20: =E20*F20 -> 450 | H20: =G20*0.05 -> 22.5
B21: John | C21: Meat | D21: Chicken | E21: 2 | F21: 65 | G21: =E21*F21 -> 130 | H21: =G21*0.05 -> 6.5
B22: John | C22: Meat | D22: Beef | E22: 3 | F22: 115 | G22: =E22*F22 -> 345 | H22: =G22*0.05 -> 17.25
B23: John StdDev | E23: =SUBTOTAL(7,E19:E22) -> 0.5 | G23: =SUBTOTAL(7,G19:G22) -> 173.1646615 | H23: =SUBTOTAL(7,H19:H22) -> 8.658233076
B24: John Average | E24: =SUBTOTAL(1,E19:E22) -> 2.75 | G24: =SUBTOTAL(1,G19:G22) -> 253 | H24: =SUBTOTAL(1,H19:H22) -> 12.65
B25: John Total | E25: =SUBTOTAL(9,E19:E22) -> 11 | G25: =SUBTOTAL(9,G19:G22) -> 1012 | H25: =SUBTOTAL(9,H19:H22) -> 50.6
B26: Mary | C26: Vegetables | D26: Carrot | E26: 2 | F26: 25 | G26: =E26*F26 -> 50 | H26: =G26*0.05 -> 2.5
B27: Mary | C27: Vegetables | D27: Brocolli | E27: 1 | F27: 30 | G27: =E27*F27 -> 30 | H27: =G27*0.05 -> 1.5
B28: Mary StdDev | E28: =SUBTOTAL(7,E26:E27) -> 0.7071067812 | G28: =SUBTOTAL(7,G26:G27) -> 14.14213562 | H28: =SUBTOTAL(7,H26:H27) -> 0.7071067812
B29: Mary Average | E29: =SUBTOTAL(1,E26:E27) -> 1.5 | G29: =SUBTOTAL(1,G26:G27) -> 40 | H29: =SUBTOTAL(1,H26:H27) -> 2
B30: Mary Total | E30: =SUBTOTAL(9,E26:E27) -> 3 | G30: =SUBTOTAL(9,G26:G27) -> 80 | H30: =SUBTOTAL(9,H26:H27) -> 4
B31: Grand StdDev | E31: =SUBTOTAL(7,E5:E27) -> 1.027105182 | G31: =SUBTOTAL(7,G5:G27) -> 154.8322204 | H31: =SUBTOTAL(7,H5:H27) -> 7.741611022
B32: Grand Average | E32: =SUBTOTAL(1,E5:E27) -> 2.857142857 | G32: =SUBTOTAL(1,G5:G27) -> 204.6428571 | H32: =SUBTOTAL(1,H5:H27) -> 10.23214286
B33: Grand Total | E33: =SUBTOTAL(9,E5:E27) -> 40 | G33: =SUBTOTAL(9,G5:G27) -> 2865 | H33: =SUBTOTAL(9,H5:H27) -> 143.25

Sheet Table
B2: Inserting Subtotals to Excel Table
B4: Sales Reps | C4: Category | D4: Product | E4: Quantity (kg) | F4: Unit Price | G4: Total Price | H4: Profit
B5: John | C5: Vegetables | D5: Brocolli | E5: 3 | F5: 29 | G5: =E5*F5 -> 87 | H5: =G5*0.05 -> 4.35
B6: Adam | C6: Fruit | D6: Cherry | E6: 3 | F6: 33 | G6: 99 | H6: 4.95
B7: Emily | C7: Dairy | D7: Milk | E7: 3 | F7: 70 | G7: 210 | H7: 10.5
B8: Adam | C8: Meat | D8: Beef | E8: 3 | F8: 120 | G8: 360 | H8: 18
B9: Emily | C9: Fruit | D9: Strawberry | E9: 2 | F9: 50 | G9: 100 | H9: 5
B10: John | C10: Meat | D10: Mutton | E10: 3 | F10: 150 | G10: 450 | H10: 22.5
B11: Mary | C11: Vegetables | D11: Carrot | E11: 2 | F11: 25 | G11: 50 | H11: 2.5
B12: Adam | C12: Fruit | D12: Strawberry | E12: 2 | F12: 42 | G12: 84 | H12: 4.2
B13: Mary | C13: Vegetables | D13: Brocolli | E13: 1 | F13: 30 | G13: 30 | H13: 1.5
B14: John | C14: Meat | D14: Chicken | E14: 2 | F14: 65 | G14: 130 | H14: 6.5
B15: Emily | C15: Fruit | D15: Cherry | E15: 4 | F15: 35 | G15: 140 | H15: 7
B16: Adam | C16: Meat | D16: Mutton | E16: 5 | F16: 100 | G16: 500 | H16: 25
B17: Emily | C17: Dairy | D17: Yogurt | E17: 4 | F17: 70 | G17: 280 | H17: 14
B18: John | C18: Meat | D18: Beef | E18: 3 | F18: 115 | G18: 345 | H18: 17.25

Sheet Filter
B2: Manually Hidden Rows
B4: Sales Reps | C4: Category | D4: Product | E4: Quantity (kg) | F4: Unit Price | G4: Total Price | H4: Profit
B5: John | C5: Vegetables | D5: Brocolli | E5: 3 | F5: 29 | G5: =E5*F5 -> 87 | H5: =G5*0.05 -> 4.35
B6: Adam | C6: Fruit | D6: Cherry | E6: 3 | F6: 33 | G6: 99 | H6: 4.95
B7: Emily | C7: Dairy | D7: Milk | E7: 3 | F7: 70 | G7: 210 | H7: 10.5
B8: Adam | C8: Meat | D8: Beef | E8: 3 | F8: 120 | G8: 360 | H8: 18
B9: Emily | C9: Fruit | D9: Strawberry | E9: 2 | F9: 50 | G9: 100 | H9: 5
B10: John | C10: Meat | D10: Mutton | E10: 3 | F10: 150 | G10: 450 | H10: 22.5
B11: Mary | C11: Vegetables | D11: Carrot | E11: 2 | F11: 25 | G11: 50 | H11: 2.5
B12: Adam | C12: Fruit | D12: Strawberry | E12: 2 | F12: 42 | G12: 84 | H12: 4.2
B13: Mary | C13: Vegetables | D13: Brocolli | E13: 1 | F13: 30 | G13: 30 | H13: 1.5
B14: John | C14: Meat | D14: Chicken | E14: 2 | F14: 65 | G14: 130 | H14: 6.5
B15: Emily | C15: Fruit | D15: Cherry | E15: 4 | F15: 35 | G15: 140 | H15: 7
B16: Adam | C16: Meat | D16: Mutton | E16: 5 | F16: 100 | G16: 500 | H16: 25
B17: Emily | C17: Dairy | D17: Yogurt | E17: 4 | F17: 70 | G17: 280 | H17: 14
B18: John | C18: Meat | D18: Beef | E18: 3 | F18: 115 | G18: 345 | H18: 17.25
B19: Grand Total | E19: =SUBTOTAL(109,E5:E18) -> 30 | G19: =SUBTOTAL(9,G5:G18) -> 2865 | H19: =SUBTOTAL(109,H5:H18) -> 107.65

Sheet Pivot Table
B2: Inserting Subtotals in Pivot Table
B4: Sales Reps | C4: (All)
B6: Row Labels | C6: Sum of Quantity (kg) | D6: Sum of Unit Price | E6: Sum of Total Price | F6: Sum of Profit
B7: Dairy
B8: Milk | C8: 3 | D8: 70 | E8: 210 | F8: 10.5
B9: Yogurt | C9: 4 | D9: 70 | E9: 280 | F9: 14
B10: Dairy Total | C10: 7 | D10: 140 | E10: 490 | F10: 24.5
B11: Fruit
B12: Cherry | C12: 7 | D12: 68 | E12: 239 | F12: 11.95
B13: Strawberry | C13: 4 | D13: 92 | E13: 184 | F13: 9.2
B14: Fruit Total | C14: 11 | D14: 160 | E14: 423 | F14: 21.15
B15: Meat
B16: Beef | C16: 6 | D16: 235 | E16: 705 | F16: 35.25
B17: Chicken | C17: 2 | D17: 65 | E17: 130 | F17: 6.5
B18: Mutton | C18: 8 | D18: 250 | E18: 950 | F18: 47.5
B19: Meat Total | C19: 16 | D19: 550 | E19: 1785 | F19: 89.25
B20: Vegetables
B21: Brocolli | C21: 4 | D21: 59 | E21: 117 | F21: 5.85
B22: Carrot | C22: 2 | D22: 25 | E22: 50 | F22: 2.5
B23: Vegetables Total | C23: 6 | D23: 84 | E23: 167 | F23: 8.35
B24: (blank)
B25: (blank) | E25: 2865 | F25: 143.25
B26: (blank) Total | E26: 2865 | F26: 143.25
B27: Grand Total | C27: 40 | D27: 934 | E27: 5730 | F27: 286.5

Sheet VBA
B2: Using VBA Code
B4: Sales Reps | C4: Category | D4: Product | E4: Quantity (kg) | F4: Unit Price | G4: Total Price | H4: Profit
B5: Adam | C5: Fruit | D5: Cherry | E5: 3 | F5: 33 | G5: =E5*F5 -> 99 | H5: =G5*0.05 -> 4.95
B6: Adam | C6: Meat | D6: Beef | E6: 3 | F6: 120 | G6: =E6*F6 -> 360 | H6: =G6*0.05 -> 18
B7: Adam | C7: Fruit | D7: Strawberry | E7: 2 | F7: 42 | G7: =E7*F7 -> 84 | H7: =G7*0.05 -> 4.2
B8: Adam | C8: Meat | D8: Mutton | E8: 5 | F8: 100 | G8: =E8*F8 -> 500 | H8: =G8*0.05 -> 25
B9: Subtotal Adam | G9: =SUM(G$5:G$8) -> 1043 | H9: =SUM(H$5:H$8) -> 52.15
B10: Emily | C10: Dairy | D10: Milk | E10: 3 | F10: 70 | G10: =E10*F10 -> 210 | H10: =G10*0.05 -> 10.5
B11: Emily | C11: Fruit | D11: Strawberry | E11: 2 | F11: 50 | G11: =E11*F11 -> 100 | H11: =G11*0.05 -> 5
B12: Emily | C12: Fruit | D12: Cherry | E12: 4 | F12: 35 | G12: =E12*F12 -> 140 | H12: =G12*0.05 -> 7
B13: Emily | C13: Dairy | D13: Yogurt | E13: 4 | F13: 70 | G13: =E13*F13 -> 280 | H13: =G13*0.05 -> 14
B14: Subtotal Emily | G14: =SUM(G$10:G$13) -> 730 | H14: =SUM(H$10:H$13) -> 36.5
B15: John | C15: Vegetables | D15: Brocolli | E15: 3 | F15: 29 | G15: =E15*F15 -> 87 | H15: =G15*0.05 -> 4.35
B16: John | C16: Meat | D16: Mutton | E16: 3 | F16: 150 | G16: =E16*F16 -> 450 | H16: =G16*0.05 -> 22.5
B17: John | C17: Meat | D17: Chicken | E17: 2 | F17: 65 | G17: =E17*F17 -> 130 | H17: =G17*0.05 -> 6.5
B18: John | C18: Meat | D18: Beef | E18: 3 | F18: 115 | G18: =E18*F18 -> 345 | H18: =G18*0.05 -> 17.25
B19: Subtotal John | G19: =SUM(G$15:G$18) -> 1012 | H19: =SUM(H$15:H$18) -> 50.6
B20: Mary | C20: Vegetables | D20: Carrot | E20: 2 | F20: 25 | G20: =E20*F20 -> 50 | H20: =G20*0.05 -> 2.5
B21: Mary | C21: Vegetables | D21: Brocolli | E21: 1 | F21: 30 | G21: =E21*F21 -> 30 | H21: =G21*0.05 -> 1.5
B22: Subtotal Mary | G22: =SUM(G$20:G$21) -> 80 | H22: =SUM(H$20:H$21) -> 4

Sheet Pivot
B2: Using VBA Code
B4: Sales Reps | C4: Category | D4: Product | E4: Quantity (kg) | F4: Unit Price | G4: Total Price | H4: Profit
B5: John | C5: Vegetables | D5: Brocolli | E5: 3 | F5: 29 | G5: =E5*F5 -> 87 | H5: =G5*0.05 -> 4.35
B6: Adam | C6: Fruit | D6: Cherry | E6: 3 | F6: 33 | G6: 99 | H6: 4.95
B7: Emily | C7: Dairy | D7: Milk | E7: 3 | F7: 70 | G7: 210 | H7: 10.5
B8: Adam | C8: Meat | D8: Beef | E8: 3 | F8: 120 | G8: 360 | H8: 18
B9: Emily | C9: Fruit | D9: Strawberry | E9: 2 | F9: 50 | G9: 100 | H9: 5
B10: John | C10: Meat | D10: Mutton | E10: 3 | F10: 150 | G10: 450 | H10: 22.5
B11: Mary | C11: Vegetables | D11: Carrot | E11: 2 | F11: 25 | G11: 50 | H11: 2.5
B12: Adam | C12: Fruit | D12: Strawberry | E12: 2 | F12: 42 | G12: 84 | H12: 4.2
B13: Mary | C13: Vegetables | D13: Brocolli | E13: 1 | F13: 30 | G13: 30 | H13: 1.5
B14: John | C14: Meat | D14: Chicken | E14: 2 | F14: 65 | G14: 130 | H14: 6.5
B15: Emily | C15: Fruit | D15: Cherry | E15: 4 | F15: 35 | G15: 140 | H15: 7
B16: Adam | C16: Meat | D16: Mutton | E16: 5 | F16: 100 | G16: 500 | H16: 25
B17: Emily | C17: Dairy | D17: Yogurt | E17: 4 | F17: 70 | G17: 280 | H17: 14
B18: John | C18: Meat | D18: Beef | E18: 3 | F18: 115 | G18: 345 | H18: 17.25

Sheet Table6
B2: Subtotals in Power Query
B4: Sales Reps | C4: Category | D4: Total Price | E4: Profit
B5: John | C5: Vegetables | D5: 87 | E5: 4.35
B6: Adam | C6: Fruit | D6: 183 | E6: 9.15
B7: Emily | C7: Dairy | D7: 490 | E7: 24.5
B8: Adam | C8: Meat | D8: 860 | E8: 43
B9: Emily | C9: Fruit | D9: 240 | E9: 12
B10: John | C10: Meat | D10: 925 | E10: 46.25
B11: Mary | C11: Vegetables | D11: 80 | E11: 4

Sheet Power Query
B2: Using Power Query
B4: Sales Reps | C4: Category | D4: Product | E4: Quantity (kg) | F4: Unit Price | G4: Total Price | H4: Profit
B5: John | C5: Vegetables | D5: Brocolli | E5: 3 | F5: 29 | G5: =E5*F5 -> 87 | H5: =G5*0.05 -> 4.35
B6: Adam | C6: Fruit | D6: Cherry | E6: 3 | F6: 33 | G6: 99 | H6: 4.95
B7: Emily | C7: Dairy | D7: Milk | E7: 3 | F7: 70 | G7: 210 | H7: 10.5
B8: Adam | C8: Meat | D8: Beef | E8: 3 | F8: 120 | G8: 360 | H8: 18
B9: Emily | C9: Fruit | D9: Strawberry | E9: 2 | F9: 50 | G9: 100 | H9: 5
B10: John | C10: Meat | D10: Mutton | E10: 3 | F10: 150 | G10: 450 | H10: 22.5
B11: Mary | C11: Vegetables | D11: Carrot | E11: 2 | F11: 25 | G11: 50 | H11: 2.5
B12: Adam | C12: Fruit | D12: Strawberry | E12: 2 | F12: 42 | G12: 84 | H12: 4.2
B13: Mary | C13: Vegetables | D13: Brocolli | E13: 1 | F13: 30 | G13: 30 | H13: 1.5
B14: John | C14: Meat | D14: Chicken | E14: 2 | F14: 65 | G14: 130 | H14: 6.5
B15: Emily | C15: Fruit | D15: Cherry | E15: 4 | F15: 35 | G15: 140 | H15: 7
B16: Adam | C16: Meat | D16: Mutton | E16: 5 | F16: 100 | G16: 500 | H16: 25
B17: Emily | C17: Dairy | D17: Yogurt | E17: 4 | F17: 70 | G17: 280 | H17: 14
B18: John | C18: Meat | D18: Beef | E18: 3 | F18: 115 | G18: 345 | H18: 17.25
